bitfinex-derivatives/quotes_ETHF0:USTF0_20260204
["timestamp","ask_amount","ask_price","bid_price","bid_amount"]
[1770216856027,0.46190453,2190.6,2189.7,8.1066602]
[1770216857030,0.46190453,2190.6,2189.7,0.9133]
[1770216857328,8.13029513,2190.6,2189.7,0.9133]
[1770216857524,7.90171513,2190.6,2189.7,0.9133]
[1770216857829,0.46190453,2190.6,2189.7,8.1066602]
[1770216858025,7.90171513,2190.6,2189.7,0.9133]
[1770216858422,0.46190453,2190.6,2189.7,8.1066602]
[1770216859735,7.4398106,2191.4,2189.7,8.1066602]
[1770216860035,7.4398106,2191.4,2189.9,7.1933602]
[1770216860236,7.4398106,2191.4,2189.9,7.4220002]
[1770216860436,7.4398106,2191.4,2190.2,7.1933602]
[1770216860629,0.00526972,2191.4,2190.2,7.4219702]
[1770216860834,7.44508032,2191.4,2189.8,7.1933602]
[1770216861036,7.4398106,2191.2,2189.8,7.1933602]
[1770216861429,7.6683206,2191.2,2189.8,7.1933602]
[1770216861833,7.6683306,2191.1,2189.8,7.1933602]
[1770216862434,7.4398106,2191.1,2189.8,7.4220202]
[1770216862936,7.4398106,2191.1,2189.7,0.9133]
[1770216863335,7.4398106,2190.8,2189.7,0.9133]
[1770216863631,7.63714558,2190.2,2189.3,0.00505254]
[1770216863830,7.40852558,2189.9,2189.3,0.00505254]
[1770216864030,7.40852558,2189.9,2188.7,7.29740395]
[1770216864236,7.40852558,2190.2,2188.7,7.29740395]
[1770216864636,7.63714558,2190.2,2188.7,7.29740395]
[1770216864837,7.40852558,2190.2,2188.7,7.29740395]
[1770216865042,7.40852558,2190.2,2188.9,7.29740395]
[1770216865233,7.40852558,2190.0,2188.8,0.9137]
[1770216865636,7.63716558,2190.0,2188.8,0.9137]
[1770216866238,7.63716558,2190.0,2188.8,8.21110395]
[1770216866640,7.40852558,2190.0,2188.8,8.21110395]
[1770216866835,7.40852558,2189.3,2188.2,7.29740395]
[1770216867339,7.63723558,2189.3,2188.0,0.457]
[1770216867543,7.63723558,2189.3,2188.0,7.75440395]
[1770216867939,7.40852558,2189.1,2188.0,0.00443875]
[1770216868639,7.63725558,2189.1,2188.0,0.00443875]
[1770216868842,7.40852558,2189.2,2188.0,0.00443875]
[1770216869443,7.63724558,2189.2,2188.0,0.00443875]
[1770216869643,7.63724558,2189.2,2188.0,7.3018427]
[1770216870041,7.40852558,2189.2,2188.0,7.3018427]
[1770216870648,0.00544753,2189.3,2188.0,7.3018427]
[1770216871240,7.40852558,2188.9,2188.0,0.00443875]
[1770216871644,7.40852558,2188.7,2187.3,7.29740395]
[1770216872246,2.63615034,2188.8,2187.3,7.29740395]
[1770216872440,7.40852558,2189.0,2187.5,7.29740395]
[1770216872646,7.40852558,2189.0,2187.5,7.30273153]
[1770216873345,2.63615034,2189.1,2187.5,7.30273153]
[1770216873646,7.40852558,2189.0,2187.5,7.30273153]
[1770216873847,7.40852558,2188.6,2187.5,0.00532758]
[1770216874047,7.40852558,2188.6,2187.5,7.30273153]
[1770216874244,2.63615034,2188.8,2187.5,7.30273153]
[1770216874544,10.04467592,2188.8,2187.5,7.30273153]
[1770216874739,7.40852558,2188.8,2187.5,7.30273153]
[1770216875146,7.40852558,2188.7,2187.5,7.30273153]
[1770216875544,10.50167592,2188.6,2187.5,0.00532758]
[1770216875744,7.40852558,2188.5,2187.5,0.00532758]
[1770216875945,7.40852558,2188.3,2186.9,7.29740395]
[1770216876147,7.40852558,2188.0,2186.9,7.29740395]
[1770216876542,7.63737558,2188.0,2186.4,7.29740395]
[1770216876742,7.40852558,2187.8,2186.4,7.29740395]
[1770216876941,7.86552558,2187.7,2186.4,7.30214379]
[1770216877142,7.8703844,2187.7,2186.4,0.00473984]
[1770216877343,7.40852558,2187.4,2186.4,0.00473984]
[1770216877742,7.63743558,2187.4,2186.4,0.00473984]
[1770216877940,7.40852558,2186.9,2185.2,7.29740395]
[1770216878248,0.457,2186.8,2185.4,7.52651395]
[1770216878550,0.457,2186.8,2185.6,7.29740395]
[1770216878944,0.457,2186.8,2185.6,7.30198345]
[1770216880848,0.46185882,2187.7,2185.8,7.29740395]
[1770216881049,0.46185882,2187.7,2186.4,7.29740395]
[1770216881349,0.45,2188.4,2187.0,7.52635395]
[1770216881545,0.45,2188.4,2187.4,7.29740395]
[1770216881748,0.457,2189.7,2188.2,7.29740395]
[1770216882046,0.457,2189.7,2188.1,1.05265]
[1770216882047,0.457,2189.7,2188.6,7.29740395]
[1770216882247,7.8688433,2189.7,2188.6,0.00374682]
[1770216882445,7.8688433,2189.7,2188.6,7.30115077]
[1770216882649,0.46031772,2189.7,2188.6,7.30115077]
[1770216884444,7.8688433,2189.7,2188.6,0.00374682]
[1770216884951,7.8688433,2189.7,2187.4,7.29740395]
[1770216884952,7.40852558,2189.0,2187.4,7.29740395]
[1770216885953,7.40852558,2189.3,2187.6,7.29740395]
[1770216886247,0.46031772,2189.7,2188.0,7.29740395]
[1770216886450,0.46031772,2189.7,2188.2,7.29740395]
[1770216886651,0.46031772,2189.7,2188.2,7.52622395]
[1770216887046,0.46031772,2189.7,2188.5,7.29740395]
[1770216887047,0.00331772,2189.7,2188.5,7.29740395]
[1770216887253,0.457,2191.0,2189.5,7.29740395]
[1770216887445,0.457,2191.0,2189.8,7.29740395]
[1770216887649,0.22196456,2191.5,2190.5,7.29740395]
[1770216888248,0.457,2193.1,2191.2,8.34857395]
[1770216888447,0.457,2193.1,2191.6,7.52586395]
[1770216888653,7.86552558,2193.1,2191.6,7.29740395]
[1770216888953,0.457,2193.1,2191.6,7.29740395]
[1770216889146,7.86878441,2193.1,2191.6,7.29740395]
[1770216890447,0.46025883,2193.1,2191.6,7.29740395]
[1770216890748,0.46025883,2193.1,2191.6,8.34834395]
[1770216890948,0.46025883,2193.1,2191.6,7.52586395]
[1770216891545,0.46025883,2193.1,2191.6,7.29740395]
[1770216891752,7.40852558,2193.0,2191.6,7.29740395]
[1770216892050,0.46025883,2193.1,2191.6,7.29740395]
[1770216892450,7.86878441,2193.1,2191.6,7.29740395]
[1770216893149,7.86878441,2193.1,2191.4,7.29740395]
[1770216893647,7.41983508,2193.9,2192.2,8.5066103]
[1770216893850,7.41983508,2194.3,2192.4,7.4559203]
[1770216894048,7.87683508,2194.7,2192.6,7.6842803]
[1770216894245,48.67683508,2194.7,2192.6,7.6842803]
[1770216894551,8.91951508,2194.4,2192.6,7.4559203]
[1770216894747,7.41983508,2194.1,2192.6,7.46057871]
[1770216894944,7.41983508,2193.9,2192.6,0.00465841]
[1770216895148,7.41983508,2193.7,2192.6,0.00465841]
[1770216895345,7.41983508,2193.3,2191.4,7.4559203]
[1770216895748,7.41983508,2193.1,2191.4,7.4559203]
[1770216896355,7.41983508,2193.1,2191.4,7.46012655]
[1770216896952,7.64814508,2193.1,2191.4,7.46012655]
[1770216897148,7.41983508,2193.1,2191.4,7.46012655]
[1770216897349,3.67908349,2193.7,2191.4,7.46012655]
[1770216897350,7.41983508,2193.5,2191.4,7.46012655]
[1770216897551,0.457,2193.8,2191.8,8.7352403]
[1770216897750,0.457,2193.8,2192.1,7.4559203]
[1770216898056,0.45512407,2194.4,2192.7,7.46414997]
[1770216898259,0.45512407,2194.4,2192.7,7.69249997]
[1770216898460,0.45512407,2194.4,2192.7,9.19893997]
[1770216898656,0.45512407,2194.4,2192.9,7.46414997]
[1770216898862,7.33818264,2195.4,2193.6,7.46414997]
[1770216899062,8.38736264,2195.4,2193.6,7.46414997]
[1770216899253,7.33818264,2195.1,2193.6,7.46414997]
[1770216899458,8.61561264,2195.1,2192.8,7.46414997]
[1770216899762,8.61911939,2195.1,2192.8,7.46928441]
[1770216900154,7.33818264,2194.7,2192.8,7.46928441]
[1770216900355,7.33818264,2194.5,2192.8,7.46928441]
[1770216900555,7.33818264,2194.9,2192.8,7.46928441]
[1770216900858,0.00351675,2195.1,2193.7,7.46414997]
[1770216901060,0.456,2195.5,2194.1,7.46414997]
[1770216901262,7.33818264,2196.3,2194.1,7.46414997]
[1770216901454,7.33818264,2196.3,2194.0,1.04981]
[1770216901455,7.33818264,2195.7,2194.0,7.46414997]
[1770216902061,7.33818264,2195.5,2194.0,7.46414997]
[1770216902355,0.00432386,2195.7,2194.4,7.69232997]
[1770216902555,7.33818264,2197.0,2195.2,7.69223997]
[1770216902761,8.38658264,2197.0,2195.2,7.46414997]
[1770216902963,7.33818264,2196.8,2195.2,7.46414997]
[1770216903159,7.33818264,2197.2,2195.4,7.46414997]
[1770216903364,7.33818264,2198.0,2196.2,8.51291997]
[1770216903559,0.68375,2198.5,2196.4,7.46414997]
[1770216903560,7.33818264,2197.8,2196.4,7.46414997]
[1770216903763,7.33818264,2198.2,2196.4,7.46414997]
[1770216903963,7.56596264,2198.2,2196.4,7.46414997]
[1770216904264,7.79418264,2198.5,2196.8,7.46414997]
[1770216904466,0.456,2198.5,2196.8,7.46414997]
[1770216904763,0.22196456,2198.3,2196.8,7.46414997]
[1770216904968,7.79418264,2198.5,2196.8,7.46414997]
[1770216905264,7.79418264,2198.5,2196.2,0.00479332]
[1770216905265,0.00529449,2198.9,2198.1,7.46414997]
[1770216905467,7.33818264,2199.9,2198.1,7.46414997]
[1770216905663,0.906,2200.4,2198.3,7.46414997]
[1770216905964,0.906,2200.4,2198.5,7.46414997]
[1770216906165,7.33818264,2200.3,2198.5,7.46414997]
[1770216906369,7.33818264,2200.2,2198.5,7.46791398]
[1770216906569,7.56576264,2200.2,2198.5,7.46791398]
[1770216906766,0.00351165,2200.3,2198.5,7.46791398]
[1770216907065,0.22196456,2199.6,2198.5,7.46791398]
[1770216907367,0.00351165,2200.3,2199.0,7.46414997]
[1770216907560,0.456,2201.5,2199.6,7.46414997]
[1770216907767,7.33818264,2202.2,2200.4,7.46414997]
[1770216907963,7.33818264,2201.5,2200.0,7.92014997]
[1770216908164,7.4172713,2201.9,2200.0,7.92014997]
[1770216908366,7.33818264,2201.8,2200.0,7.92014997]
[1770216908665,7.33818264,2201.5,2200.0,7.92361963]
[1770216908868,0.22196456,2201.3,2200.0,7.92361963]
[1770216909067,0.00506653,2201.8,2200.2,7.46414997]
[1770216909266,7.33818264,2201.7,2200.2,7.46414997]
[1770216909467,0.22196456,2201.2,2200.2,7.46414997]
[1770216909661,0.22196456,2201.3,2200.0,7.46761963]
[1770216909969,7.79318264,2201.5,2200.0,7.46761963]
[1770216910367,7.33818264,2201.2,2199.0,7.46414997]
[1770216910571,7.33818264,2200.9,2199.0,7.46414997]
[1770216910771,7.33818264,2200.7,2199.0,7.46414997]
[1770216910970,7.5601472,2201.0,2199.0,7.46414997]
[1770216911170,7.33818264,2201.0,2199.0,7.46414997]
[1770216911366,7.33818264,2201.0,2199.0,7.46958951]
[1770216911568,7.33818264,2201.3,2199.0,7.46958951]
[1770216911772,0.455,2201.5,2199.8,7.46414997]
[1770216911972,7.79318264,2201.5,2199.8,7.46414997]
[1770216912268,7.33818264,2200.7,2199.2,7.46414997]
[1770216912471,8.38496264,2200.4,2199.2,7.46414997]
[1770216912774,0.21652502,2199.6,2198.4,7.46414997]
[1770216912970,0.455,2199.7,2198.4,7.46414997]
[1770216913164,0.21652502,2199.5,2198.4,7.46414997]
[1770216913368,0.21652502,2199.4,2198.4,7.46414997]
[1770216913767,0.21652502,2198.9,2198.4,0.00539954]
[1770216913973,7.34283597,2199.4,2198.4,0.00539954]
[1770216914373,0.21652502,2199.0,2198.5,0.9097]
[1770216914676,7.34283597,2199.4,2198.5,0.9097]
[1770216914875,0.21652502,2198.7,2198.3,0.45488662]
[1770216915075,0.21652502,2198.8,2198.3,0.45488662]
[1770216915372,0.21652502,2199.0,2198.3,0.45488662]
[1770216915569,0.21652502,2199.3,2198.3,7.91903659]
[1770216915768,0.21652502,2199.3,2198.3,7.923831]
[1770216915965,7.34283597,2199.4,2198.3,0.45968103]
[1770216916170,0.21652502,2198.9,2198.3,0.45968103]
[1770216916470,0.21652502,2199.1,2198.3,7.923831]
[1770216916677,7.33818264,2199.9,2198.3,7.923831]
[1770216916678,7.33818264,2200.3,2198.3,7.923831]
[1770216916979,7.55470766,2199.7,2198.3,7.923831]
[1770216917272,7.33818264,2199.5,2198.3,7.923831]
[1770216917675,7.56023025,2199.5,2198.3,7.923831]
[1770216917976,0.21652502,2199.2,2198.3,7.923831]
[1770216918171,7.34370523,2199.5,2198.3,0.45968103]
[1770216918172,0.21652502,2199.1,2198.3,0.45968103]
[1770216918377,0.21652502,2198.9,2198.3,0.45968103]
[1770216918574,7.33818264,2199.2,2198.3,0.45968103]
[1770216918773,0.21652502,2198.9,2198.3,0.45968103]
[1770216919174,0.21652502,2198.4,2198.3,0.45968103]
[1770216919376,0.21652502,2198.6,2197.5,7.46414997]
[1770216919575,7.33818264,2198.9,2197.5,7.46414997]
[1770216920076,0.21652502,2198.8,2197.5,7.46414997]
[1770216920273,7.33818264,2198.3,2197.1,7.46414997]
[1770216920577,7.56596264,2198.3,2197.1,0.00355459]
[1770216920779,0.21652502,2197.7,2197.1,0.00355459]
[1770216920975,0.2206861,2197.7,2197.1,0.00355459]
[1770216921175,0.21652502,2197.4,2197.1,0.00355459]
[1770216921371,0.2206861,2197.7,2197.1,0.00355459]
[1770216921876,0.00416108,2197.7,2197.1,0.00355459]
[1770216922076,7.33818264,2199.6,2197.8,7.46414997]
[1770216922372,0.455,2199.9,2198.7,7.46414997]
[1770216922571,7.79318264,2199.9,2198.7,7.46414997]
[1770216922770,7.79318264,2199.9,2198.3,7.46414997]
[1770216923170,7.33818264,2199.6,2198.3,7.46976953]
[1770216923374,0.45955965,2199.9,2198.3,7.46976953]
[1770216923572,0.45,2200.4,2199.3,7.46414997]
[1770216923971,0.21652502,2200.2,2198.9,7.37341563]
[1770216924171,0.45,2200.4,2198.9,7.37341563]
[1770216924377,7.48065419,2200.1,2198.4,7.37341563]
[1770216924571,0.0044369,2200.1,2198.4,7.37341563]
[1770216924769,0.0044369,2200.1,2198.3,0.00561956]
[1770216924770,0.0044369,2200.1,2198.7,7.37341563]
[1770216924982,7.48065419,2200.0,2198.7,7.37341563]
[1770216925275,0.21652502,2199.8,2198.7,7.37341563]
[1770216925482,0.21652502,2199.5,2198.3,7.37903519]
[1770216925675,7.48065419,2199.8,2198.3,7.37903519]
[1770216925874,0.21652502,2199.7,2198.3,7.37903519]
[1770216926077,0.21652502,2199.6,2198.3,7.37903519]
[1770216926277,0.21652502,2199.7,2198.3,7.37903519]
[1770216926479,0.455,2199.9,2198.3,7.37903519]
[1770216926678,0.67152502,2199.9,2198.3,7.37903519]
[1770216926976,0.455,2199.9,2198.3,7.60680519]
[1770216927377,0.455,2199.9,2198.8,7.37341563]
[1770216927681,0.0044369,2200.1,2198.8,7.37341563]
[1770216928082,0.21652502,2199.9,2198.8,7.37341563]
[1770216928479,0.21652502,2199.8,2198.8,7.37341563]
[1770216928676,0.21652502,2199.6,2198.4,7.37341563]
[1770216928880,8.16326419,2199.9,2198.4,7.37341563]
[1770216929178,0.21652502,2199.6,2198.4,7.37341563]
[1770216929484,0.67152502,2199.9,2198.4,7.37341563]
[1770216929679,0.67152502,2199.9,2198.4,7.60117563]
[1770216929982,0.455,2199.9,2198.4,7.60117563]
[1770216930880,0.21652502,2199.6,2198.4,7.37341563]
[1770216931078,7.48065419,2199.4,2198.3,0.00561956]
[1770216931279,0.21652502,2199.1,2198.0,7.37341563]
[1770216931474,7.48065419,2198.7,2197.0,7.37341563]
[1770216931675,0.2278,2198.1,2197.0,7.37341563]
[1770216931979,0.21652502,2198.2,2197.0,7.37341563]
[1770216932283,0.00437467,2198.2,2197.2,7.37341563]
[1770216932485,0.21652502,2197.9,2197.2,7.37341563]
[1770216932682,0.00437467,2198.2,2197.2,7.37341563]
[1770216932887,0.21652502,2197.8,2197.0,0.00341058]
[1770216933182,0.21652502,2197.9,2197.0,0.00341058]
[1770216933576,7.70851419,2197.5,2196.0,7.82841563]
[1770216933881,7.92503921,2197.5,2196.0,7.82841563]
[1770216934081,7.48065419,2197.3,2196.0,7.82841563]
[1770216934583,0.21652502,2197.0,2196.0,7.82841563]
[1770216934783,0.21652502,2197.0,2196.0,7.83234376]
[1770216934982,0.21652502,2196.8,2196.0,7.83234376]
[1770216935285,0.21652502,2197.0,2196.0,7.37734376]
[1770216935584,7.93565419,2197.2,2196.0,7.37734376]
[1770216935780,0.21652502,2196.4,2195.2,7.37341563]
[1770216935978,7.70857419,2196.9,2195.2,7.37341563]
[1770216936175,7.92509921,2196.9,2195.2,7.37341563]
[1770216936381,0.21652502,2196.9,2195.2,7.60150563]
[1770216936582,7.69717921,2196.9,2195.2,7.60150563]
[1770216936884,0.21652502,2196.7,2195.2,7.37745751]
[1770216937085,0.21652502,2196.6,2195.2,7.37745751]
[1770216937380,0.21652502,2196.4,2195.2,7.37745751]
[1770216937579,0.21652502,2195.8,2194.8,7.37341563]
[1770216937781,7.48065419,2196.1,2194.8,7.37341563]
[1770216938085,0.21652502,2195.9,2194.8,7.37341563]
[1770216938275,7.48065419,2196.0,2194.4,7.37341563]
[1770216938475,7.69717921,2196.0,2194.4,7.37341563]
[1770216938678,0.21652502,2195.3,2194.4,0.0055491]
[1770216938986,41.84884,2196.1,2194.4,7.37896473]
[1770216938987,0.455,2195.4,2194.4,7.37896473]
[1770216939279,7.48065419,2196.1,2194.4,7.60713473]
[1770216940193,7.69717921,2195.9,2194.4,7.37896473]
[1770216940381,7.48065419,2195.9,2194.4,7.37896473]
[1770216940585,0.21652502,2195.6,2194.4,7.37896473]
[1770216940782,7.48065419,2195.9,2194.4,7.37896473]
[1770216940981,0.21652502,2195.6,2194.4,7.37896473]
[1770216941378,0.21652502,2195.4,2194.4,7.37896473]
[1770216941679,7.48065419,2195.2,2194.4,0.0055491]
[1770216941987,0.21652502,2194.8,2194.0,7.37341563]
[1770216942281,7.93565419,2195.4,2194.0,7.37341563]
[1770216942488,0.21652502,2195.2,2194.0,7.37341563]
[1770216942686,7.48065419,2195.2,2193.8,0.455]
[1770216942881,0.21652502,2194.6,2193.8,0.00462645]
[1770216943080,7.69717921,2194.9,2193.8,7.37804208]
[1770216943282,7.48065419,2194.7,2193.8,0.00462645]
[1770216943486,7.48065419,2194.5,2193.3,7.37341563]
[1770216943887,7.70878419,2194.9,2193.3,7.37341563]
[1770216944089,7.69717921,2194.9,2193.3,7.37341563]
[1770216944286,0.21652502,2194.8,2193.3,7.37341563]
[1770216944488,0.00319098,2194.8,2193.3,7.37902069]
[1770216945093,0.455,2195.4,2193.9,7.37341563]
[1770216945390,7.48065419,2196.1,2194.3,7.37341563]
[1770216945597,7.48065419,2195.7,2194.3,7.37341563]
[1770216945788,41.01652502,2195.6,2194.3,7.37341563]
[1770216946090,0.21652502,2195.5,2194.3,7.37341563]
[1770216946281,0.21652502,2195.3,2194.3,7.37341563]
[1770216946687,0.21652502,2194.8,2193.9,7.37341563]
[1770216946888,0.21652502,2195.1,2193.9,7.37341563]
[1770216947088,0.21652502,2195.0,2193.9,7.37341563]
[1770216947491,0.21652502,2194.8,2193.9,7.37341563]
[1770216947693,0.21652502,2194.5,2193.5,7.37341563]
[1770216947986,7.48065419,2194.9,2193.5,7.37341563]
[1770216948291,7.48065419,2195.0,2193.5,7.37341563]
[1770216948489,0.21652502,2194.7,2193.5,7.37341563]
[1770216948890,0.21652502,2194.5,2193.5,7.37341563]
[1770216949084,0.21652502,2195.0,2193.7,7.37341563]
[1770216949288,0.455,2195.3,2193.7,7.37341563]
[1770216949490,0.21652502,2195.1,2193.7,7.37341563]
[1770216949689,0.455,2195.3,2193.9,7.37341563]
[1770216950090,0.21652502,2195.0,2193.9,7.37341563]
[1770216950289,0.21652502,2195.2,2193.9,7.37341563]
[1770216950792,0.455,2195.3,2194.1,7.37341563]
[1770216950990,0.21652502,2195.2,2194.1,7.37341563]
[1770216951192,0.21652502,2195.0,2194.1,7.37341563]
[1770216951493,7.93565419,2195.3,2194.1,7.37341563]
[1770216951686,0.21652502,2195.0,2194.1,7.37341563]
[1770216951889,0.455,2195.3,2194.1,7.37341563]
[1770216952089,0.21652502,2195.1,2194.1,7.37341563]
[1770216952292,0.455,2195.3,2194.1,7.37341563]
[1770216952293,0.21652502,2194.7,2194.1,7.37341563]
[1770216952592,0.21652502,2194.7,2193.7,7.37341563]
[1770216952990,0.21652502,2194.6,2193.7,7.37341563]
[1770216953190,0.21652502,2194.9,2193.7,7.37341563]
[1770216953693,0.21652502,2194.8,2193.7,7.37341563]
[1770216953889,0.21652502,2195.2,2193.9,7.04788415]
[1770216954096,0.455,2195.3,2193.9,7.04788415]
[1770216954396,0.21652502,2194.9,2193.9,7.04788415]
[1770216954790,0.21652502,2194.7,2193.9,7.04788415]
[1770216954995,0.21652502,2194.9,2193.9,7.04788415]
[1770216955396,0.21652502,2194.7,2193.9,7.04788415]
[1770216955595,0.21652502,2194.7,2193.6,0.455]
[1770216955596,0.21652502,2194.6,2193.7,7.04788415]
[1770216955795,0.22811,2195.1,2193.7,7.04788415]
[1770216955994,0.21652502,2194.8,2193.7,7.04788415]
[1770216956196,0.21652502,2195.0,2193.7,7.04788415]
[1770216956396,0.21652502,2195.2,2193.7,7.04788415]
[1770216957096,0.21652502,2195.2,2193.9,7.04788415]
[1770216957490,0.21652502,2195.0,2193.9,7.04788415]
[1770216957697,0.21652502,2195.1,2193.9,7.04788415]
[1770216957898,0.455,2195.3,2194.1,7.60672648]
[1770216958200,0.455,2195.3,2194.1,7.83492648]
[1770216958792,0.00330017,2195.6,2194.5,7.60672648]
[1770216958997,0.00330017,2195.6,2194.5,7.83489648]
[1770216959897,0.21652502,2195.3,2194.5,7.60672648]
[1770216960098,0.00330017,2195.6,2194.5,7.60672648]
[1770216960299,7.01821356,2195.3,2194.1,7.60672648]
[1770216960604,7.24633356,2195.0,2193.7,7.60672648]
[1770216961093,0.456,2195.2,2194.2,7.60672648]
[1770216961299,7.24957373,2195.6,2194.2,7.60672648]
[1770216961495,7.24628356,2195.5,2194.2,7.60672648]
[1770216961695,7.01821356,2195.3,2193.9,7.60672648]
[1770216961895,7.01821356,2195.1,2193.9,7.60672648]
[1770216962494,2.66055036,2195.5,2194.3,7.60672648]
[1770216962802,0.456,2196.0,2195.3,7.60672648]
[1770216963303,0.456,2196.0,2194.3,5.06142055]
[1770216963304,7.01821356,2195.9,2194.7,7.60672648]
[1770216963500,2.66055036,2195.8,2194.7,7.60672648]
[1770216963692,2.66055036,2195.7,2194.7,7.61068069]
[1770216963898,9.67876392,2195.7,2194.7,0.00395421]
[1770216964094,2.66055036,2195.5,2194.7,0.00395421]
[1770216964596,2.66055036,2195.7,2194.7,7.61068069]
[1770216964797,0.00360466,2195.8,2194.7,7.83882069]
[1770216965295,0.00360466,2195.8,2194.7,7.61068069]
[1770216965495,9.67876392,2195.6,2194.7,0.00395421]
[1770216965700,2.66055036,2195.7,2194.7,7.61068069]
[1770216966093,9.67876392,2195.6,2194.7,0.00395421]
[1770216966402,2.66055036,2195.0,2193.7,7.60672648]
[1770216966702,9.67876392,2195.1,2193.7,7.60672648]
[1770216966998,7.01821356,2194.9,2193.3,4.01175055]
[1770216967204,9.67876392,2194.4,2193.3,0.0057211]
[1770216967402,9.67876392,2194.1,2193.3,0.0057211]
[1770216967700,7.01821356,2193.9,2192.7,7.60672648]
[1770216968102,2.66055036,2194.0,2192.7,7.60672648]
[1770216968297,9.67876392,2194.0,2192.7,7.60672648]
[1770216968497,7.02300344,2194.0,2192.7,7.61180937]
[1770216968696,9.6835538,2194.0,2192.7,7.61180937]
[1770216969497,7.02300344,2194.0,2192.7,7.61180937]
[1770216969806,9.6835538,2194.0,2192.7,7.61180937]
[1770216970202,7.01821356,2193.9,2192.7,7.61180937]
[1770216970502,9.67876392,2193.8,2192.7,7.61180937]
[1770216970698,7.01821356,2193.7,2192.7,0.00508289]
[1770216970998,7.01821356,2193.6,2192.7,0.00508289]
[1770216971303,2.66055036,2193.6,2192.7,0.00508289]
[1770216971497,9.67876392,2193.5,2192.7,0.00508289]
[1770216971701,2.66055036,2193.4,2192.3,0.45613155]
[1770216971899,2.66055036,2193.4,2192.3,8.06285803]
[1770216972194,40.05118168,2193.5,2192.3,8.06285803]
[1770216972195,7.01821356,2193.5,2192.3,0.45613155]
[1770216972401,7.01821356,2193.3,2192.3,8.06285803]
[1770216972703,7.01821356,2193.7,2192.3,8.06708291]
[1770216973300,2.66055036,2193.8,2192.3,8.06708291]
[1770216973501,7.01821356,2193.7,2192.3,8.06708291]
[1770216974094,2.66055036,2193.9,2192.5,7.60672648]
[1770216974294,0.00478988,2194.0,2193.1,7.60672648]
[1770216974900,2.66055036,2194.6,2193.1,7.83503648]
[1770216975102,7.47421356,2195.2,2193.5,7.60672648]
[1770216975301,7.47421356,2195.2,2193.7,7.60672648]
[1770216975700,7.24633356,2195.0,2193.7,7.60672648]
[1770216976105,7.24635356,2194.8,2193.2,7.60672648]
[1770216976506,7.01821356,2194.6,2193.2,7.60672648]
[1770216977906,2.66055036,2194.9,2193.2,7.60672648]
[1770216978101,7.01821356,2194.8,2193.2,7.60672648]
[1770216978808,2.66413901,2195.0,2193.8,7.60672648]
[1770216979008,0.00358865,2195.0,2193.8,7.60672648]
[1770216979204,7.02180221,2195.0,2193.8,7.60672648]
[1770216979401,7.02180221,2195.0,2193.5,7.60672648]
[1770216979607,7.01821356,2194.8,2193.5,7.60672648]
[1770216980008,7.01821356,2194.5,2193.5,7.60672648]
[1770216980202,7.24639356,2194.5,2193.1,7.60672648]
[1770216980910,9.67876392,2194.9,2193.1,7.60672648]
[1770216981112,7.01821356,2194.8,2193.3,7.60672648]
[1770216981513,0.22816,2194.6,2193.3,7.60672648]
[1770216981814,7.01821356,2194.5,2193.0,8.06272648]
[1770216982005,7.01821356,2193.6,2192.3,8.06708291]
[1770216982210,7.47421356,2193.6,2192.3,8.06708291]
[1770216982407,7.24648356,2193.5,2192.3,8.06708291]
[1770216982609,0.456,2193.6,2192.3,8.29548291]
[1770216982816,0.456,2193.6,2192.8,7.60672648]
[1770216983205,0.456,2193.6,2192.4,7.60672648]
[1770216983914,0.456,2193.6,2192.4,7.83510648]
[1770216984114,8.04351037,2193.6,2192.4,7.60672648]
[1770216984713,0.456,2193.6,2192.6,6.97011088]
[1770216984913,0.456,2193.6,2192.8,6.97011088]
[1770216985314,0.456,2193.6,2192.4,6.97011088]
[1770216985506,8.04351037,2193.6,2192.4,6.97011088]
[1770216986106,8.27177037,2193.6,2192.4,6.97011088]
[1770216987313,0.456,2193.6,2192.6,6.97011088]
[1770216987512,0.456,2193.6,2192.6,7.19847088]
[1770216988014,0.456,2193.6,2192.3,0.46035643]
[1770216988015,7.81583037,2193.1,2192.3,0.46035643]
[1770216988212,7.82065034,2193.1,2192.3,0.46035643]
[1770216988909,7.82065034,2193.1,2191.1,2.71222557]
[1770216988910,7.58751037,2192.4,2190.8,6.97011088]
[1770216989115,7.58751037,2192.2,2190.9,0.32696706]
[1770216989316,7.58751037,2192.2,2190.9,7.29707794]
[1770216989512,0.456,2192.3,2190.9,7.29707794]
[1770216989716,8.04351037,2192.3,2190.9,7.53053455]
[1770216989912,8.04351037,2192.3,2190.5,6.97011088]
[1770216989913,7.58751037,2191.9,2190.5,6.97011088]
[1770216990110,7.81595037,2191.9,2190.5,6.97011088]
[1770216990920,7.81595037,2191.9,2190.5,0.00364226]
[1770216991116,7.58751037,2191.3,2189.6,7.19879088]
[1770216991418,7.58751037,2191.1,2189.3,0.22196456]
[1770216991612,7.58751037,2191.1,2189.3,7.42078544]
[1770216992118,7.59293852,2191.1,2189.3,7.4258029]
[1770216992516,7.59293852,2191.1,2189.5,6.97011088]
[1770216993017,0.00542815,2191.1,2189.6,1.05194]
[1770216993218,0.00542815,2191.1,2189.9,6.97011088]
[1770216993412,7.58751037,2192.0,2190.1,7.19873088]
[1770216993818,40.8,2192.1,2190.4,8.02166088]
[1770216994020,7.58751037,2192.8,2191.2,6.97011088]
[1770216994318,0.22838,2192.5,2191.2,0.00552774]
[1770216994624,7.58751037,2192.4,2191.2,0.00552774]
[1770216995124,7.58751037,2192.4,2191.2,6.97563862]
[1770216995818,7.58751037,2192.4,2191.2,0.00552774]
[1770216996018,1.05047,2192.7,2190.5,6.97011088]
[1770216996019,7.58751037,2191.7,2190.5,6.97011088]
[1770216996219,7.58751037,2191.7,2190.1,6.97011088]
[1770216996220,7.81597037,2191.7,2190.1,6.97011088]
[1770216997224,7.81597037,2191.7,2190.1,6.97470911]
[1770216997728,7.58751037,2191.7,2190.1,7.20332911]
[1770216997920,7.58751037,2192.5,2190.5,6.97011088]
[1770216998121,7.58751037,2192.5,2190.7,6.97011088]
[1770216998421,7.58751037,2192.5,2190.9,6.97011088]
[1770217000124,7.81589037,2192.5,2190.9,6.97011088]
[1770217000321,7.58751037,2192.3,2190.2,7.65472088]
[1770217000625,7.58751037,2192.0,2190.2,7.65472088]
[1770217002025,7.81594037,2192.0,2190.2,7.65472088]
[1770217002222,7.58751037,2191.6,2190.2,6.97011088]
[1770217002526,0.456,2191.7,2190.2,6.97011088]
[1770217002727,7.81591037,2192.3,2190.5,7.19869088]
[1770217002923,8.04351037,2192.6,2191.3,6.97011088]
[1770217003129,0.456,2192.6,2191.3,6.97011088]
[1770217003430,8.04351037,2192.6,2191.3,6.97011088]
[1770217003832,0.456,2192.6,2191.3,6.97011088]
[1770217004527,0.456,2192.6,2191.6,6.97011088]
[1770217004829,7.58751037,2193.1,2191.6,6.97011088]
[1770217005030,7.58751037,2193.0,2191.6,6.97011088]
[1770217005227,7.81585037,2192.9,2191.6,6.97011088]